bitfinex/quotes_ETHUSD_20240811
["timestamp","ask_amount","ask_price","bid_price","bid_amount"]
[1723410801464,3.90809,2558.8,2557.9,8.26485258]
[1723410801666,7.27,2558.8,2558.0,1.37648526]
[1723410801859,7.27,2558.8,2558.1,3.90906]
[1723410802144,7.27,2558.8,2558.2,4.4589]
[1723410802368,7.27,2558.8,2558.2,0.55]
[1723410802571,7.27,2558.8,2558.7,3.90823]
[1723410802784,5.011,2559.0,2558.7,4.331661]
[1723410802992,19.87,2559.2,2558.8,3.98612367]
[1723410803173,19.87,2559.2,2558.8,4.53612367]
[1723410803372,19.87,2559.2,2558.8,4.53609367]
[1723410803786,19.87,2559.2,2558.9,3.90783]
[1723410803995,12.28,2559.5,2558.9,1.30070743]
[1723410803996,7.27,2559.5,2558.9,1.30070743]
[1723410804297,5.3403,2559.8,2559.2,3.90732]
[1723410804495,5.3403,2559.8,2559.3,7.53536423]
[1723410804901,5.3403,2559.8,2559.3,3.62813423]
[1723410805204,5.3403,2559.8,2558.7,4.689841]
[1723410805205,0.07839392,2559.7,2558.7,0.781661]
[1723410805409,9.24695,2559.8,2559.1,3.0]
[1723410805705,5.3403,2559.8,2559.0,6.98591535]
[1723410805890,5.41869392,2559.8,2559.0,6.98591535]
[1723410806097,5.41869392,2559.8,2559.1,3.9075]
[1723410806298,5.3403,2559.8,2559.2,6.90734]
[1723410806484,5.3403,2559.8,2559.3,4.4573]
[1723410806683,5.3403,2559.8,2559.3,0.55]
[1723410806884,5.3403,2559.8,2559.5,3.90699]
[1723410807101,27.14,2560.1,2559.6,3.90674]
[1723410807278,27.14,2560.1,2559.7,3.90669]
[1723410807711,27.14,2560.1,2559.6,3.90674]
[1723410808017,5.0813,2560.2,2559.8,3.90655]
[1723410808218,5.0813,2560.2,2559.9,0.390655]
[1723410808421,5.0813,2560.2,2559.8,3.90655]
[1723410808710,5.0813,2560.2,2559.7,3.90669]
[1723410808917,5.0813,2560.2,2559.8,3.55]
[1723410809141,0.6118434,2561.6,2561.5,3.90396]
[1723410809301,4.4161386,2562.3,2559.9,53.96521786]
[1723410809302,1.62995638,2563.6,2562.8,0.0679]
[1723410809617,0.1,2564.7,2562.9,0.55]
[1723410809845,3.90011,2564.1,2562.9,0.55]
[1723410809989,3.90076,2563.7,2562.8,3.0679]
[1723410810339,0.03599562,2563.6,2562.8,3.0679]
[1723410810474,0.03599562,2563.6,2562.8,0.0679]
[1723410810670,0.1,2564.2,2562.8,3.96985]
[1723410810910,3.90001,2564.1,2563.0,3.90166]
[1723410811119,0.400001,2564.0,2563.1,0.07802139]
[1723410811325,0.400001,2564.0,2562.8,0.0679]
[1723410811326,3.90167,2563.0,2562.8,0.0679]
[1723410811486,3.90182,2562.9,2562.8,0.0679]
[1723410811681,4.71789674,2562.9,2562.8,0.0679]
[1723410811884,3.93753974,2562.9,2562.8,0.0679]
[1723410812110,13.24925974,2562.9,2562.8,0.0679]
[1723410812313,13.24925974,2562.9,2561.3,3.90423]
[1723410812314,3.90288,2562.3,2561.3,3.90423]
[1723410812515,3.90264,2562.4,2561.4,3.98206381]
[1723410812818,0.03492756,2562.2,2561.4,3.98206381]
[1723410812990,0.03486637,2562.1,2561.4,0.07807381]
[1723410813190,0.931235,2562.4,2561.7,3.90365]
[1723410813392,0.03498874,2562.3,2561.6,3.90378]
[1723410813710,0.52185511,2562.3,2561.7,3.98171447]
[1723410813914,0.03498874,2562.3,2561.0,5.1994]
[1723410814217,5.4099,2562.6,2561.3,3.90418]
[1723410814378,0.54099,2562.5,2561.6,3.90372]
[1723410814580,0.57663694,2562.5,2561.7,3.0]
[1723410814784,0.57663694,2562.5,2561.8,3.90346]
[1723410815875,0.57663694,2562.5,2561.7,3.0]
[1723410815876,4.47908694,2562.5,2561.7,3.0]
[1723410816082,0.59865369,2562.4,2561.6,6.90368]
[1723410816505,0.03587262,2562.3,2561.6,6.90368]
[1723410818313,0.03587262,2562.3,2561.6,3.0]
[1723410818523,0.03587262,2562.3,2561.5,6.9039]
[1723410819104,0.03587262,2562.3,2561.6,0.07806575]
[1723410819317,0.03587262,2562.3,2561.7,0.55]
[1723410819499,0.03587262,2562.3,2562.2,7.80578]
[1723410819704,39.42,2562.8,2562.4,3.90244]
[1723410820423,39.42,2562.8,2562.5,3.90243]
[1723410820622,7.27,2563.1,2562.6,3.90218]
[1723410820941,27.14,2563.3,2562.8,3.90195]
[1723410821345,0.03662306,2563.3,2563.0,3.90157]
[1723410821866,0.03662306,2563.3,2562.9,3.0]
[1723410822030,7.27,2563.5,2562.7,3.0]
[1723410822264,0.76415699,2563.4,2562.7,6.90205]
[1723410822428,0.76415699,2563.4,2562.8,3.90196]
[1723410822637,0.76415699,2563.4,2562.9,3.0]
[1723410823837,0.76415699,2563.4,2562.6,3.90223]
[1723410824153,0.76415699,2563.4,2562.7,6.9021]
[1723410824360,0.8034157,2563.3,2562.7,3.0]
[1723410824513,0.8034157,2563.3,2562.7,3.07803629]
[1723410824717,0.0345576,2563.2,2562.8,6.90185]
[1723410825026,5.2533,2563.7,2562.8,6.90185]
[1723410825350,0.03491037,2563.6,2563.1,3.90141]
[1723410825553,0.03491037,2563.6,2563.2,3.62801461]
[1723410825731,0.12503,2564.3,2563.5,3.90091]
[1723410825936,0.12503,2564.3,2563.6,0.07800488]
[1723410826115,0.12503,2564.3,2563.5,3.90086]
[1723410826454,0.12503,2564.3,2563.6,3.55]
[1723410826628,0.12503,2564.3,2563.7,3.90059]
[1723410826951,0.12503,2564.3,2563.6,3.0]
[1723410827154,4.02484,2564.3,2563.4,3.0]
[1723410827353,4.02484,2564.3,2563.5,3.97881795]
[1723410827354,0.12503,2564.3,2563.5,3.97881795]
[1723410827659,0.12503,2564.3,2563.6,3.90066]
[1723410827813,0.12503,2564.3,2563.6,3.97866525]
[1723410828281,0.12503,2564.3,2563.4,3.745107]
[1723410828282,4.02482,2564.3,2563.4,3.745107]
[1723410828431,0.12503,2564.3,2563.7,3.90059]
[1723410828768,0.12503,2564.3,2563.5,3.90082]
[1723410828929,0.12503,2564.3,2563.6,3.90071]
[1723410829457,0.12503,2564.3,2564.2,3.89985]
[1723410829951,0.12503,2564.3,2564.2,7.7997]
[1723410830152,0.12503,2564.3,2564.2,11.3497]
[1723410831534,0.12503,2564.3,2564.2,3.0]
[1723410831964,0.12503,2564.3,2564.2,6.89985]
[1723410832170,0.12503,2564.3,2564.2,7.979824]
[1723410832334,0.12503,2564.3,2564.2,12.429674]
[1723410832653,0.12503,2564.3,2564.2,8.529824]
[1723410832854,0.12503,2564.3,2564.2,4.629974]
[1723410833156,0.12503,2564.3,2564.2,8.529824]
[1723410833452,0.12503,2564.3,2564.2,12.429674]
[1723410833751,0.12503,2564.3,2564.2,8.529824]
[1723410833953,0.12503,2564.3,2564.2,4.079974]
[1723410834255,0.12503,2564.3,2564.2,11.879674]
[1723410834953,0.12503,2564.3,2564.2,4.079974]
[1723410835157,0.12503,2564.3,2563.8,3.90036]
[1723410835743,0.12503,2564.3,2563.7,3.90055]
[1723410835947,0.12503,2564.3,2563.5,3.90085]
[1723410836335,0.12503,2564.3,2563.3,0.95221758]
[1723410836336,0.12503,2564.3,2563.9,3.90026]
[1723410836662,0.12503,2564.3,2563.9,3.9002]
[1723410836867,0.12503,2564.3,2563.9,7.80041]
[1723410837158,0.12503,2564.3,2563.7,10.80099]
[1723410837322,0.12503,2564.3,2563.9,3.90018]
[1723410837525,0.12503,2564.3,2563.8,3.85]
[1723410837727,0.12503,2564.3,2563.8,0.85]
[1723410838262,0.12503,2564.3,2563.8,3.85]
[1723410838859,0.12503,2564.3,2563.9,0.77505]
[1723410839067,8.7736,2564.2,2563.3,4.85331758]
[1723410839226,4.8737,2564.2,2563.5,3.90087]
[1723410839427,4.8737,2564.2,2563.8,3.90035]
[1723410839655,4.8737,2564.2,2563.7,3.9005]
[1723410839839,4.8737,2564.2,2563.8,3.90034]
[1723410840045,4.8737,2564.2,2563.7,4.29835052]
[1723410840249,4.8737,2564.2,2563.4,3.90104]
[1723410840431,8.77361,2564.2,2562.9,0.3922]
[1723410840632,4.8737,2563.5,2562.6,3.90223]
[1723410840838,4.8737,2563.5,2562.7,3.90202]
[1723410841233,4.8737,2563.5,2562.7,3.90201]
[1723410841465,4.8737,2563.5,2562.7,3.90212]
[1723410841639,4.8737,2563.5,2562.0,0.3922]
[1723410841837,4.8737,2563.5,2562.9,3.9017]
[1723410842571,4.8737,2563.5,2562.9,3.90173]
[1723410842732,7.27,2564.1,2563.0,0.07802964]
[1723410842931,0.12503,2564.3,2562.0,0.66208458]
[1723410842932,0.12503,2564.3,2564.0,3.90002]
[1723410843142,0.12503,2564.3,2564.1,0.390002]
[1723410843340,0.12503,2564.3,2563.6,3.90069]
[1723410843563,0.12503,2564.3,2563.7,0.55]
[1723410843770,0.12503,2564.3,2563.8,0.07800103]
[1723410844069,0.12503,2564.3,2564.2,7.7997]
[1723410844230,0.12503,2564.3,2564.2,9.12967]
[1723410844430,0.12503,2564.3,2564.2,1.32997]
[1723410844668,0.12503,2564.3,2564.2,3.77997]
[1723410844896,0.12503,2564.3,2563.6,3.90064]
[1723410844897,5.46083,2564.3,2563.6,3.90064]
[1723410845077,0.12503,2564.3,2563.9,3.90016]
[1723410845254,0.12503,2564.3,2564.1,3.89999]
[1723410845442,0.12503,2564.3,2564.0,3.390016]
[1723410845945,0.12503,2564.3,2564.0,0.390016]
[1723410846139,0.12503,2564.3,2564.0,3.0]
[1723410846340,0.12503,2564.3,2563.8,3.0]
[1723410847086,0.12503,2564.3,2563.4,3.90094]
[1723410847403,0.12503,2564.3,2563.6,3.90074]
[1723410848222,0.12503,2564.3,2563.7,3.90057]
[1723410848551,0.12503,2564.3,2563.9,3.90019]
[1723410849055,0.12503,2564.3,2564.2,3.89985]
[1723410849711,0.12503,2564.3,2564.0,3.0]
[1723410849855,0.12503,2564.3,2563.8,3.0]
[1723410850255,0.12503,2564.3,2563.6,3.0]
[1723410850471,0.12503,2564.3,2563.7,3.90059]
[1723410850667,0.12503,2564.3,2563.9,3.90017]
[1723410850866,0.12503,2564.3,2564.1,7.79984]
[1723410851068,0.12503,2564.3,2563.8,3.0]
[1723410851953,0.12503,2564.3,2563.6,7.590829]
[1723410852157,0.12503,2564.3,2563.7,0.55]
[1723410852386,0.12503,2564.3,2563.8,3.90034]
[1723410852578,0.12503,2564.3,2563.7,5.6546829]
[1723410852780,0.12503,2564.3,2563.8,3.0]
[1723410852980,0.12503,2564.3,2563.7,1.7541729]
[1723410853219,0.12503,2564.3,2563.7,5.6546929]
[1723410853397,0.12503,2564.3,2563.9,3.90027]
[1723410853616,0.12503,2564.3,2564.1,3.8999]
[1723410854121,0.12503,2564.3,2564.2,3.89985]
[1723410854349,0.12503,2564.3,2564.2,11.3497]
[1723410856278,0.12503,2564.3,2564.2,7.44985]
[1723410856482,0.12503,2564.3,2564.2,8.194835]
[1723410857125,0.12503,2564.3,2564.2,4.294985]
[1723410858421,0.12503,2564.3,2564.2,16.07252161]
[1723410858723,0.12503,2564.3,2564.2,12.17267161]
[1723410858918,0.12503,2564.3,2564.2,12.094685]
[1723410859713,0.12503,2564.3,2564.2,15.994535]
[1723410859935,0.12503,2564.3,2564.2,16.66914755]
[1723410860346,7.27,2565.3,2565.1,3.89835]
[1723410860547,4.50701644,2566.6,2565.1,3.89835]
[1723410860548,7.27,2565.7,2565.5,3.89787]
[1723410860758,7.27,2565.7,2565.3,3.0]
[1723410861204,7.27,2565.7,2564.9,3.89874]
[1723410861409,7.27,2565.7,2565.0,3.55]
[1723410861641,7.27,2565.7,2565.1,3.89835]
[1723410861850,7.27,2565.7,2565.3,3.89817]
[1723410862027,7.27,2565.7,2565.2,0.744835]
[1723410862228,7.27,2565.7,2565.2,3.0]
[1723410862451,7.27,2565.7,2565.3,3.89808]
[1723410862652,7.27,2565.7,2565.3,4.44808]
[1723410862855,7.27,2565.7,2564.8,3.8989]
[1723410862856,7.27,2565.7,2564.9,3.89867]
[1723410863012,7.27,2565.7,2565.0,3.55]
[1723410863211,7.27,2565.7,2565.1,3.89838]
[1723410863455,7.27,2565.7,2565.0,3.55]
[1723410863611,7.27,2565.7,2565.0,7.44854]
[1723410864058,7.27,2565.7,2565.0,3.55]
[1723410864240,7.27,2565.7,2565.0,4.3338527]
[1723410864420,7.27,2565.7,2565.2,3.89823]
[1723410864622,7.27,2565.7,2565.1,3.89834]
[1723410865147,7.27,2565.7,2565.1,7.79673]
[1723410865336,5.324,2565.4,2564.2,0.744985]
[1723410865535,5.324,2565.4,2563.8,3.90034]
[1723410865536,7.27,2565.3,2564.6,3.89914]
[1723410865747,11.16822,2565.3,2564.4,3.89943]
[1723410865913,11.16822,2565.3,2564.2,3.89981]
[1723410865914,3.89849,2565.1,2564.2,3.89973]
[1723410866248,3.89849,2565.1,2564.3,3.8996]
[1723410866408,6.440822,2565.2,2564.4,3.89952]
[1723410866610,6.440822,2565.2,2564.4,3.89946]
[1723410866941,10.339152,2565.2,2564.4,3.89946]
[1723410867121,10.339152,2565.2,2564.5,3.0]
[1723410867328,5.324,2565.2,2564.5,3.689946]
[1723410867533,5.324,2565.2,2564.6,3.89915]
[1723410867853,5.324,2565.2,2564.6,3.89911]
[1723410868053,5.324,2565.2,2564.7,3.89896]
[1723410868419,5.324,2565.2,2564.8,3.0]
[1723410869829,5.324,2565.2,2564.8,3.689896]
[1723410870028,5.324,2565.2,2564.9,4.44866]
[1723410870258,5.324,2565.2,2564.9,7.44866]
[1723410870618,7.27,2565.3,2565.0,3.89857]
[1723410870823,7.27,2565.3,2564.9,3.55]
[1723410871235,7.27,2565.3,2564.9,0.55]
[1723410871441,7.27,2565.3,2564.8,3.0]
[1723410871722,7.27,2565.3,2564.5,6.89929]
[1723410871723,5.3233,2565.2,2564.5,6.89929]
[1723410871922,9.22174,2565.2,2564.5,4.079897]
[1723410872155,5.3233,2565.2,2564.3,3.89968]
[1723410872370,5.3233,2565.2,2564.3,3.89959]
[1723410872862,5.3233,2565.2,2564.4,3.89941]
[1723410873064,5.3233,2565.2,2564.6,3.89924]
[1723410873360,5.3233,2565.2,2564.5,3.89938]
[1723410873562,5.3233,2565.2,2564.5,4.679159]
[1723410873928,5.3233,2565.2,2564.5,0.779879]
[1723410874128,5.3233,2565.2,2564.5,7.679179]
[1723410874329,5.3233,2565.2,2564.5,3.0]
[1723410874530,3.8991,2564.7,2563.9,3.90028]
[1723410874848,3.8991,2564.7,2563.6,3.90069]
[1723410874849,3.89954,2564.4,2563.6,3.90069]
[1723410875057,3.89954,2564.4,2563.7,0.390069]
[1723410875257,3.89933,2564.6,2563.7,0.390069]
[1723410875471,5.3233,2564.7,2563.7,0.390069]
[1723410875693,5.3233,2564.7,2564.0,3.90004]
[1723410875839,5.3233,2564.7,2564.2,3.89983]
[1723410876545,5.3233,2564.7,2564.3,0.55]
[1723410876745,27.14,2564.8,2564.1,7.44991]
[1723410876964,27.14,2564.8,2564.3,3.89968]
[1723410877163,27.14,2564.8,2564.5,3.89927]
[1723410877368,17.6033,2565.1,2564.5,3.89927]
[1723410877369,24.8733,2565.1,2564.5,3.89927]
[1723410877581,24.8733,2565.1,2564.4,3.389968]
[1723410877749,24.8733,2565.1,2564.5,0.55]
[1723410877956,27.36063,2565.1,2564.4,3.0]
[1723410878270,19.55,2565.1,2564.3,6.89956]
[1723410878455,19.55,2565.1,2564.4,0.55]
[1723410878656,19.55,2565.1,2564.5,3.89938]
[1723410878852,19.55,2565.1,2564.5,4.644218]
[1723410879070,19.55,2565.1,2564.6,0.55]
[1723410879591,19.55,2565.1,2564.6,4.44918]
[1723410879968,19.55,2565.1,2564.6,0.55]
[1723410880510,19.55,2565.1,2564.2,3.0]
[1723410880665,19.55,2565.1,2564.5,3.8993]
[1723410880872,19.55,2565.1,2564.5,3.89938]
[1723410881180,7.27,2565.1,2564.7,3.89898]
[1723410881499,7.27,2565.1,2564.7,7.79798]
[1723410881656,7.27,2565.1,2564.8,0.834798]
[1723410882001,7.27,2565.4,2564.8,4.733628]
[1723410882512,7.27,2565.4,2564.8,0.834798]
[1723410882688,7.27,2565.4,2564.8,3.834798]
[1723410883212,7.27,2565.4,2564.3,4.58251]
[1723410883213,3.89834,2565.2,2564.3,4.58251]
[1723410883426,5.3233,2565.1,2564.4,3.0]
[1723410883790,9.22191,2565.1,2564.4,3.0]
[1723410884082,3.89873,2565.0,2564.4,3.75825]
[1723410884300,3.89951,2564.5,2563.7,3.90052]
[1723410884503,3.89951,2564.5,2563.5,3.90083]
[1723410884504,9.22294,2564.4,2563.5,3.90083]
[1723410884824,5.3233,2564.4,2563.7,3.90051]
[1723410885397,3.89948,2564.5,2563.1,3.90143]
[1723410885398,3.90025,2564.0,2563.1,3.90143]
[1723410885720,3.90025,2564.0,2562.9,3.90173]
[1723410885721,3.90047,2563.8,2562.9,3.90173]
[1723410886030,3.90047,2563.8,2563.0,0.390173]
[1723410886206,9.224,2563.7,2563.0,0.390173]
[1723410886408,5.3233,2563.7,2563.0,4.291843]
[1723410886608,5.3233,2563.7,2563.1,0.4291843]
[1723410888210,5.3233,2563.7,2562.8,3.90189]
[1723410888211,5.3233,2563.7,2562.8,3.90187]
[1723410888414,3.90086,2563.6,2562.6,7.73117]
[1723410888721,3.90084,2563.6,2562.6,7.73117]
[1723410888912,3.90101,2563.5,2562.6,11.63335]
[1723410889113,3.90101,2563.5,2562.7,1.163335]
[1723410889327,11.17101,2563.5,2562.7,1.163335]
[1723410889545,5.3233,2563.1,2562.3,7.80531]
[1723410889838,5.3233,2563.1,2562.3,7.80528]
[1723410890059,3.90177,2563.0,2562.2,3.829]
[1723410890275,5.3233,2563.1,2562.2,1.33485379]
[1723410890436,3.90238,2562.6,2561.4,9.1672]
[1723410890638,12.8258,2562.5,2561.7,3.90357]
[1723410891133,12.8258,2562.5,2561.7,7.80713]
[1723410891337,3.90272,2562.4,2561.6,3.90379]
[1723410891530,3.90272,2562.4,2561.4,7.73302]
[1723410891736,3.90289,2562.2,2561.4,3.90402]
[1723410891967,7.80591,2562.2,2561.4,4.684856]
[1723410892160,7.80591,2562.2,2561.0,3.829]
[1723410892161,5.1829,2562.1,2561.0,7.73359]
[1723410892363,5.1829,2562.1,2560.9,0.06793831]
[1723410892364,3.90359,2561.8,2560.9,3.90478]
[1723410892675,3.90359,2561.8,2560.6,3.829]
[1723410892676,3.90392,2561.6,2560.6,7.73421]
[1723410892959,5.2768,2561.7,2561.0,3.90471]
[1723410893130,5.2768,2561.7,2560.7,0.773421]
[1723410893131,5.2768,2561.7,2560.8,3.9049]
[1723410893523,3.9039,2561.6,2560.8,3.9049]
[1723410893724,7.80785,2561.6,2560.8,1.2412591]
[1723410893951,3.90396,2561.5,2560.8,1.2412591]
[1723410894272,3.90396,2561.5,2560.6,7.73424]
[1723410894273,7.8078,2561.6,2560.6,7.73424]
[1723410894474,3.90397,2561.5,2560.7,0.07809467]
[1723410894621,3.90397,2561.5,2560.6,7.73421]
[1723410894962,3.90387,2561.6,2560.4,3.90552]
[1723410895171,0.91807,2561.5,2560.5,0.90065]
[1723410895340,3.90421,2561.4,2560.4,7.81106]
[1723410895535,3.90421,2561.4,2560.4,3.90551]
[1723410896334,3.90421,2561.4,2560.5,6.90545]
[1723410896541,3.90421,2561.4,2560.6,1.081096]
[1723410897577,3.90429,2561.3,2560.6,1.081096]
[1723410898102,3.90421,2561.4,2560.6,1.081096]
[1723410898300,3.90421,2561.4,2560.5,6.90546]
[1723410898509,3.90421,2561.4,2560.5,3.0]
[1723410898801,3.90457,2561.1,2560.5,3.0]
[1723410899020,3.90457,2561.1,2560.2,7.73487]
[1723410899180,3.90457,2561.1,2560.3,0.55]
[1723410899369,3.90454,2561.2,2560.3,0.995587]
[1723410899703,5.434,2560.7,2559.9,3.9064]
[1723410899872,5.434,2560.7,2560.1,3.90598]
[1723410900072,5.434,2560.7,2560.2,3.90592]
[1723410900267,7.27,2560.8,2559.9,3.90632]
[1723410900601,7.27,2560.8,2560.3,3.90565]
[1723410900803,7.27,2560.8,2560.4,3.0]
[1723410901302,7.27,2560.8,2560.3,3.0]
[1723410901709,7.27,2560.8,2560.2,3.0]
[1723410901875,7.27,2560.8,2560.3,3.90578]
[1723410902069,7.27,2560.8,2560.4,3.0]
[1723410902386,7.27,2560.8,2560.6,3.90523]
[1723410902575,19.87,2561.1,2560.7,3.90518]
[1723410902775,19.87,2561.1,2560.7,4.686237]
[1723410903087,19.87,2561.1,2560.4,3.0]
[1723410903406,5.4991,2561.0,2560.4,3.0]
[1723410903595,19.87,2561.1,2559.7,3.90665]
[1723410903596,5.4991,2560.5,2559.7,3.90665]
[1723410903795,5.4991,2560.5,2559.4,3.829]
[1723410903971,5.4991,2560.5,2559.5,0.3829]
[1723410904170,3.90566,2560.4,2559.5,4.28984]
[1723410904399,3.90566,2560.4,2559.5,4.2898]
[1723410904593,5.4991,2560.5,2559.3,3.90723]
[1723410904914,3.90571,2560.4,2559.5,3.90699]
[1723410905111,3.90565,2560.4,2559.5,7.8139]
[1723410905308,3.90565,2560.4,2559.5,3.9069]
[1723410905616,0.940475,2560.3,2559.5,3.9069]
[1723410905994,0.940475,2560.3,2559.0,3.829]
[1723410905995,25.1181,2560.2,2559.0,3.829]
[1723410906172,3.90635,2560.0,2559.0,3.829]
[1723410906380,3.90635,2560.0,2559.1,3.90749]
[1723410906727,27.14,2560.1,2559.4,3.90705]
[1723410907023,27.14,2560.1,2559.5,3.90698]
[1723410907315,27.14,2560.1,2559.6,3.9068]
[1723410907538,5.2481,2560.2,2559.4,10.81416]
[1723410907678,5.2481,2560.2,2559.5,3.55]
[1723410908618,5.2481,2560.2,2559.6,3.90684]
[1723410908917,5.2481,2560.2,2559.7,3.9067]
[1723410909115,5.2481,2560.2,2559.6,3.90684]
[1723410909414,5.2481,2560.2,2558.4,3.9086]
[1723410909415,5.15793,2560.1,2559.2,3.0]
[1723410909620,3.90649,2559.9,2559.1,3.0]
[1723410910175,3.90657,2559.8,2559.1,3.0]
[1723410910419,3.90694,2559.6,2559.1,3.0]
[1723410910719,3.90717,2559.4,2558.8,0.61066414]
[1723410911015,3.90741,2559.3,2558.8,0.61066414]
[1723410911311,9.21462,2558.9,2558.1,3.90904]
[1723410911516,5.3067,2558.9,2558.3,3.90878]
[1723410911820,5.3067,2559.4,2558.5,3.90852]
[1723410912033,5.3067,2559.8,2559.1,3.90752]
[1723410912180,5.3067,2559.8,2559.3,3.90729]
[1723410912380,23.77538,2560.6,2559.7,3.90657]
[1723410912381,12.5767,2560.4,2559.7,3.90657]
[1723410912665,12.5767,2560.4,2559.5,3.90693]
[1723410912666,5.3067,2560.4,2559.8,0.390657]
[1723410912865,5.3067,2560.4,2559.5,3.9069]
[1723410913171,9.21235,2560.4,2559.6,3.90682]
[1723410913344,9.21235,2560.4,2559.5,3.9069]
[1723410913532,10.524122,2560.4,2559.5,4.30540324]
[1723410913871,10.524122,2560.4,2559.5,8.21229324]
[1723410914043,6.618472,2560.4,2559.3,3.90723]
[1723410914240,6.618472,2560.4,2559.2,8.2029]
[1723410914241,5.3067,2559.9,2559.2,3.0]
[1723410914460,5.3067,2559.9,2559.1,3.90753]
[1723410914631,5.3067,2559.9,2559.4,3.90707]
[1723410914834,5.3067,2559.9,2558.9,3.0]
[1723410914835,5.3067,2559.9,2559.1,3.90756]
[1723410915035,3.90655,2559.8,2559.1,3.90756]
[1723410915281,3.90655,2559.8,2559.0,4.72797]
[1723410915433,9.21311,2559.9,2559.1,7.45754]
[1723410915629,9.21311,2559.9,2559.1,5.585323]
[1723410916480,3.90677,2559.7,2558.9,3.0]
[1723410916683,5.3067,2559.9,2558.6,4.46160637]
[1723410916684,3.90686,2559.6,2558.6,12.10548146]
[1723410916888,3.90719,2559.4,2558.6,3.90829]
[1723410917189,3.90719,2559.4,2558.4,8.42925237]
[1723410917190,3.90733,2559.3,2558.4,8.42925237]
[1723410917501,3.90786,2559.0,2558.4,0.61213237]
[1723410917643,3.90837,2558.7,2558.4,0.61213237]
[1723410918048,7.81669,2558.7,2557.8,3.90947]
[1723410918303,5.3067,2559.5,2557.9,0.91803906]
[1723410918580,5.3067,2560.2,2559.4,3.90711]
[1723410918880,9.21271,2560.2,2559.5,0.390711]
[1723410919179,5.3067,2560.2,2559.2,3.0]
[1723410919383,5.3067,2560.7,2560.0,3.90623]
[1723410919543,5.3067,2560.7,2560.0,0.781275]
[1723410919749,5.3067,2560.7,2560.0,4.687485]
[1723410920186,5.3067,2560.7,2560.0,0.781275]
[1723410920187,9.21191,2560.7,2560.0,0.781275]
[1723410920591,5.3067,2560.7,2560.0,4.76562731]
[1723410920809,5.3067,2560.7,2559.9,3.0]
[1723410920810,5.3067,2560.7,2560.1,0.77656273]
[1723410921093,3.90543,2560.6,2559.8,3.90653]
[1723410921396,3.90558,2560.5,2559.7,3.90656]
[1723410921555,3.90558,2560.5,2559.8,3.0]
[1723410921740,3.90558,2560.5,2559.7,3.0]
[1723410922152,13.11722,2560.7,2559.7,3.0]
[1723410922352,0.921195,2560.6,2559.8,3.90654]
[1723410922595,3.90591,2560.3,2559.7,3.0]
[1723410922792,3.90591,2560.3,2559.5,3.0]
[1723410923901,3.90595,2560.2,2559.5,3.0]
[1723410924100,3.90591,2560.3,2559.5,3.0]
[1723410924281,7.81182,2560.3,2559.5,3.690706]
[1723410924459,3.90591,2560.3,2559.5,3.690706]
[1723410925796,3.9061,2560.1,2559.0,9.34672]
[1723410925995,3.9061,2560.1,2559.0,3.90762]
[1723410925996,3.90642,2559.9,2559.0,3.90762]
[1723410926305,16.34038,2560.0,2559.1,3.9075]
[1723410926507,3.90642,2559.9,2559.1,0.390762]
[1723410926673,12.4341,2560.0,2558.6,9.3981]
[1723410926674,12.4341,2560.0,2558.6,9.34737]
[1723410926874,12.4341,2560.0,2558.1,3.959]
[1723410926875,3.90701,2559.5,2558.2,5.4391]
[1723410927104,7.27,2559.3,2558.2,9.34804]
[1723410927312,7.27,2559.3,2558.8,3.90805]
[1723410927512,7.27,2559.5,2558.8,3.90805]
[1723410927798,3.90741,2559.3,2558.4,3.90856]
[1723410927962,7.27,2559.5,2558.5,0.63062428]
[1723410927963,11.1771,2559.5,2558.5,0.63062428]
[1723410928166,11.1771,2559.5,2558.7,3.90814]
[1723410928367,7.27,2559.5,2558.6,3.90829]
[1723410928567,11.17706,2559.5,2558.6,3.90829]
[1723410928767,3.90732,2559.3,2558.6,0.781696]
[1723410929420,3.90771,2559.1,2558.3,1.721614]
[1723410929599,3.90793,2558.9,2558.0,3.90922]
[1723410929773,3.90793,2558.9,2558.1,0.07817775]
[1723410929774,7.27,2558.9,2558.1,0.07817775]
[1723410930094,7.27,2559.3,2559.1,3.90757]
[1723410930267,12.4341,2559.7,2559.1,0.781545]
[1723410930469,7.27,2559.7,2559.1,3.90755]
[1723410930666,7.27,2559.7,2559.2,0.390755]
[1723410930870,7.27,2559.7,2559.3,3.90731]
[1723410931306,19.55,2560.0,2559.2,0.46889793]
[1723410931508,7.27,2560.0,2559.7,3.9066]
[1723410932028,7.27,2560.3,2559.7,3.90659]
[1723410932229,7.27,2560.3,2559.8,3.90645]
[1723410932520,3.90525,2560.7,2559.8,3.90645]
[1723410932521,12.28,2560.8,2560.3,3.90566]
[1723410932690,9.39727,2561.3,2560.2,3.90587]
[1723410932894,3.90457,2561.1,2560.3,1.31869243]
[1723410933210,9.39727,2561.3,2560.3,8.22434243]
[1723410933392,9.39727,2561.3,2560.4,3.90553]
[1723410933589,9.39727,2561.3,2560.4,3.98363544]
[1723410933789,9.39727,2561.3,2560.4,4.72795224]
[1723410934125,3.90458,2561.1,2560.4,0.82242224]